bitfinex/quotes_SOLUSD_20220101
["timestamp","ask_amount","ask_price","bid_price","bid_amount"]
[1641024939123,10.03821466,173.29,173.13,38.11150822]
[1641024939322,10.53821466,173.29,173.13,18.14713468]
[1641024939523,10.53821466,173.29,173.13,12.13649368]
[1641024939924,3.21309073,173.25,173.13,12.13649368]
[1641024940527,3.71309073,173.25,173.13,12.13649368]
[1641024940727,1.07274312,173.23,173.13,12.13649368]
[1641024941328,4.28583385,173.23,173.13,12.13649368]
[1641024941528,3.21309073,173.23,173.13,12.13649368]
[1641024942530,13.98242246,173.25,173.13,12.13649368]
[1641024943730,13.98242246,173.25,173.13,11.87649368]
[1641024943930,14.48242246,173.25,173.13,11.87649368]
[1641024944130,14.74242246,173.25,173.13,11.87649368]
[1641024944531,9.78017131,173.24,173.13,11.87649368]
[1641024944932,3.21309073,173.23,173.13,10.4498]
[1641024945133,3.21309073,173.23,173.13,10.7098]
[1641024945831,3.71309073,173.23,173.13,9.9498]
[1641024946031,3.97309073,173.23,173.13,1.2865]
[1641024946834,3.21309073,173.2,173.13,1.2865]
[1641024947133,3.47309073,173.2,173.13,1.2865]
[1641024947433,3.97309073,173.2,173.13,1.2865]
[1641024948631,12.63889073,173.2,173.13,1.2865]
[1641024949032,9.78017131,173.19,173.13,1.2865]
[1641024949234,1.31861658,173.18,173.13,1.2865]
[1641024949635,9.78017131,173.19,173.13,1.2865]
[1641024949833,10.28017131,173.19,173.13,1.2865]
[1641024950431,9.78017131,173.19,173.13,1.2865]
[1641024950634,3.21309073,173.19,173.13,1.2865]
[1641024951632,9.78191227,173.19,173.13,1.2865]
[1641024952035,9.78191227,173.19,173.13,1.5465]
[1641024952233,9.78191227,173.19,173.13,2.0465]
[1641024952434,9.78191227,173.19,173.14,1.42669368]
[1641024952633,3.21309073,173.2,173.14,1.42669368]
[1641024952834,3.21309073,173.2,173.14,2.18669368]
[1641024953236,3.21309073,173.2,173.14,0.76]
[1641024953436,3.21309073,173.2,173.14,0.26]
[1641024953637,3.21309073,173.2,173.13,2.0465]
[1641024953838,9.53632457,173.23,173.16,8.6616]
[1641024954038,3.21309073,173.24,173.16,8.9216]
[1641024954441,3.21309073,173.23,173.16,8.9216]
[1641024960544,3.21309073,173.23,173.16,8.6616]
[1641024960745,3.21309073,173.22,173.14,8.6634]
[1641024960947,3.71309073,173.22,173.14,0.5]
[1641024961443,3.97309073,173.22,173.14,0.5]
[1641024961644,11.87839073,173.2,173.13,1.7865]
[1641024961844,12.37839073,173.2,173.13,1.7865]
[1641024962045,12.37839073,173.2,173.13,2.0465]
[1641024962244,9.7801866,173.19,173.13,1.7865]
[1641024962447,2.354609,173.18,173.13,1.2865]
[1641024963948,2.354609,173.18,173.13,1.5465]
[1641024964748,2.354609,173.18,173.13,1.2865]
[1641024965048,11.020609,173.18,173.13,1.5465]
[1641024965246,9.78244398,173.17,173.13,1.5465]
[1641024965850,3.21309073,173.19,173.13,2.0465]
[1641024966047,3.47309073,173.19,173.13,2.0465]
[1641024966446,13.97153533,173.19,173.13,2.0465]
[1641024966648,12.63849073,173.19,173.13,2.0465]
[1641024966848,9.78207889,173.18,173.13,2.0465]
[1641024967449,3.21309073,173.2,173.13,2.0465]
[1641024968051,3.21309073,173.22,173.13,2.0465]
[1641024968752,3.21309073,173.22,173.13,10.711]
[1641024969152,3.71309073,173.22,173.13,2.0465]
[1641024969553,3.71309073,173.22,173.13,1.7865]
[1641024969760,11.87709073,173.22,173.13,1.5465]
[1641024969953,3.21309073,173.2,173.13,1.5465]
[1641024970260,3.21309073,173.2,173.13,1.2865]
[1641024970455,3.21309073,173.2,173.13,1.5465]
[1641024970755,3.21309073,173.19,173.13,1.5465]
[1641024971357,10.28084269,173.19,173.13,1.5465]
[1641024971557,9.78084269,173.19,173.13,1.2865]
[1641024971759,10.54084269,173.19,173.13,1.5465]
[1641024971958,6.56775196,173.18,173.13,1.5465]
[1641024973085,1.64222015,173.15,173.13,1.5465]
[1641024973286,1.64222015,173.15,173.14,28.50750944]
[1641024973483,1.64222015,173.15,173.14,37.93150944]
[1641024973685,2.015e-05,173.15,173.14,13.43713039]
[1641024973884,2.015e-05,173.16,173.14,13.43713039]
[1641024974486,3.21309073,173.24,173.14,12.93713039]
[1641024974985,13.5915907,173.24,173.14,13.43713039]
[1641024975189,3.21309073,173.23,173.14,13.43713039]
[1641024975789,9.78084269,173.23,173.14,13.43713039]
[1641024976188,10.28084269,173.23,173.14,13.43713039]
[1641024976390,3.21309073,173.22,173.14,13.43713039]
[1641024976788,9.78084269,173.22,173.14,13.43713039]
[1641024978098,10.04084269,173.22,173.14,12.93713039]
[1641024978291,9.78084269,173.22,173.14,12.93713039]
[1641024978490,9.78084269,173.22,173.14,13.43713039]
[1641024978692,3.21309073,173.21,173.14,13.43713039]
[1641024978891,3.21309073,173.21,173.14,12.93713039]
[1641024979291,3.21309073,173.22,173.14,12.93713039]
[1641024979690,3.71309073,173.22,173.14,12.93713039]
[1641024979891,3.97309073,173.22,173.14,12.93713039]
[1641024980493,3.21309073,173.2,173.14,12.93713039]
[1641024980692,3.47309073,173.2,173.14,12.67713039]
[1641024980891,3.47309073,173.2,173.14,4.27313039]
[1641024981392,12.13759073,173.2,173.14,4.27313039]
[1641024981692,9.78084269,173.19,173.14,4.27313039]
[1641024981890,9.78084269,173.19,173.14,0.26]
[1641024982091,9.78084269,173.19,173.13,10.2112]
[1641024982492,3.21309073,173.2,173.13,10.2112]
[1641024983494,11.87749073,173.2,173.13,10.2112]
[1641024984196,8.6644,173.2,173.13,10.2112]
[1641024984995,11.87749073,173.2,173.13,10.2112]
[1641024988301,6.56853583,173.19,173.13,10.2112]
[1641024990304,11.87749073,173.2,173.13,10.2112]
[1641024992503,3.21309073,173.2,173.16,8.6631]
[1641024993003,3.21309073,173.2,173.16,8.9231]
[1641024993204,3.21309073,173.22,173.16,9.4231]
[1641024993802,3.21309073,173.23,173.16,9.4231]
[1641024994407,3.21309073,173.22,173.16,9.4231]
[1641024995012,3.21309073,173.23,173.16,9.4231]
[1641024995613,9.78077165,173.24,173.16,9.4231]
[1641024997722,3.21309073,173.23,173.16,9.4231]
[1641024997922,3.21309073,173.23,173.16,8.9231]
[1641024998122,3.21309073,173.23,173.16,8.6631]
[1641024998740,3.21309073,173.22,173.16,8.6631]
[1641024999539,3.21309073,173.22,173.16,9.4231]
[1641024999740,9.78077165,173.23,173.16,9.4231]
[1641025000340,3.21309073,173.23,173.16,9.4231]
[1641025001841,9.78077165,173.26,173.16,9.4231]
[1641025002044,8.6627,173.24,173.16,9.4231]
[1641025002443,8.6627,173.24,173.16,9.1631]
[1641025002640,9.1627,173.24,173.16,0.5]
[1641025002841,9.1627,173.24,173.14,9.1639]
[1641025003044,9.4227,173.24,173.14,8.6639]
[1641025003642,0.87105339,173.22,173.14,8.6639]
[1641025003843,8.6644,173.2,173.14,8.9239]
[1641025004145,8.6644,173.2,173.14,0.26]
[1641025004545,8.6644,173.2,173.13,1.5465]
[1641025005145,3.21309073,173.23,173.13,2.0465]
[1641025005346,3.21309073,173.26,173.13,17.5301]
[1641025005546,3.21309073,173.26,173.14,76.0016]
[1641025005947,16.79825638,173.27,173.14,76.7616]
[1641025006749,16.79825638,173.27,173.2,8.6611]
[1641025006950,8.6612,173.27,173.2,8.6611]
[1641025007148,8.6612,173.27,173.2,8.9211]
[1641025007348,8.6612,173.27,173.2,0.26]
[1641025007549,9.1612,173.27,173.2,0.26]
[1641025007750,9.1612,173.27,173.18,8.922]
[1641025007955,9.4212,173.27,173.18,8.922]
[1641025008351,6.56699911,173.26,173.18,8.922]
[1641025008550,8.6622,173.25,173.18,8.922]
[1641025009355,8.6622,173.25,173.18,9.422]
[1641025009952,8.6622,173.25,173.18,8.922]
[1641025010652,6.56676589,173.24,173.18,8.922]
[1641025012056,15.22916589,173.24,173.18,8.922]
[1641025012254,18.44225662,173.24,173.18,8.922]
[1641025012654,6.56676589,173.23,173.18,8.922]
[1641025014757,9.77985662,173.24,173.18,8.922]
[1641025015556,18.44225662,173.24,173.18,8.922]
[1641025015956,18.70225662,173.24,173.18,8.922]
[1641025016157,18.44225662,173.24,173.18,0.26]
[1641025016557,18.44225662,173.24,173.16,81.4859]
[1641025016558,6.56676589,173.23,173.16,73.0833]
[1641025017062,9.77985662,173.23,173.16,73.0833]
[1641025017460,9.77985662,173.23,173.16,73.5833]
[1641025017659,9.77985662,173.23,173.17,8.6625]
[1641025018061,9.77985662,173.23,173.17,8.9225]
[1641025018562,18.44265662,173.23,173.17,8.9225]
[1641025018960,18.44265662,173.23,173.17,0.26]
[1641025019161,18.44265662,173.23,173.15,28.14495473]
[1641025019361,18.44265662,173.23,173.15,28.64495473]
[1641025019564,18.70265662,173.23,173.15,28.14495473]
[1641025019960,9.77985662,173.22,173.15,28.14495473]
[1641025020362,9.77985662,173.22,173.16,8.6626]
[1641025020561,9.77985662,173.22,173.16,8.9226]
[1641025020966,9.77985662,173.23,173.16,0.26]
[1641025021362,10.03985662,173.23,173.14,76.2616]
[1641025021562,3.21309073,173.21,173.14,76.2616]
[1641025021960,3.21309073,173.21,173.14,102.83144265]
[1641025022361,3.21309073,173.21,173.15,8.6634]
[1641025022561,3.21309073,173.21,173.15,8.9234]
[1641025022761,3.21309073,173.21,173.15,0.26]
[1641025023162,3.21309073,173.21,173.14,76.2616]
[1641025023662,3.71309073,173.23,173.14,76.2616]
[1641025023962,3.71309073,173.23,173.14,76.7616]
[1641025024162,3.71309073,173.23,173.15,25.4202488]
[1641025024363,12.37639073,173.23,173.15,25.4202488]
[1641025024562,12.37639073,173.23,173.15,25.6802488]
[1641025025665,12.37639073,173.23,173.15,34.3435488]
[1641025026567,12.37639073,173.23,173.15,25.6802488]
[1641025026765,3.21309073,173.23,173.15,34.3435488]
[1641025026963,3.21309073,173.23,173.15,34.8435488]
[1641025027366,3.21309073,173.26,173.15,34.8435488]
[1641025028167,9.78001678,173.27,173.15,34.8435488]
[1641025028864,277.87389073,173.28,173.15,34.8435488]
[1641025029065,277.87389073,173.28,173.15,36.27024248]
[1641025029268,269.21309073,173.28,173.15,36.27024248]
[1641025029667,266.0,173.28,173.15,36.27024248]
[1641025030267,3.21309073,173.31,173.15,36.27024248]
[1641025030971,3.21309073,173.29,173.15,36.27024248]
[1641025034071,3.21309073,173.28,173.15,36.27024248]
[1641025035371,3.21309073,173.29,173.15,36.27024248]
[1641025035975,9.7783907,173.29,173.15,36.27024248]
[1641025036673,3.21309073,173.29,173.15,36.27024248]
[1641025039703,3.21309073,173.29,173.15,43.96324248]
[1641025039903,3.21309073,173.29,173.15,54.06749346]
[1641025040108,3.21309073,173.3,173.15,54.06749346]
[1641025040305,3.21309073,173.3,173.15,63.9314438]
[1641025041607,3.21309073,173.32,173.15,63.9314438]
[1641025042506,3.21309073,173.33,173.15,63.9314438]
[1641025042909,3.21309073,173.33,173.15,69.9420848]
[1641025043308,3.21309073,173.33,173.15,78.6974848]
[1641025044410,3.21309073,173.32,173.15,78.6974848]
[1641025047511,8.6579,173.34,173.15,78.6974848]
[1641025047913,4.92396565,173.35,173.15,78.6974848]
[1641025048111,4.92396565,173.35,173.15,68.59323382]
[1641025049411,32.07199073,173.39,173.15,68.59323382]
[1641025049614,8.6575,173.35,173.15,68.59323382]
[1641025050214,8.6575,173.35,173.15,68.33323382]
[1641025050813,8.9175,173.35,173.15,68.33323382]
[1641025051217,9.4175,173.35,173.15,68.33323382]
[1641025051615,9.4175,173.35,173.15,68.59323382]
[1641025053418,9.1575,173.35,173.15,68.59323382]
[1641025053620,9.1575,173.35,173.15,51.88483382]
[1641025053821,15.5965,173.35,173.15,36.01024248]
[1641025054019,8.661,173.28,173.15,36.01024248]
[1641025054218,2.77602698,173.3,173.15,36.01024248]
[1641025054219,2.77602698,173.3,173.15,34.5835488]
[1641025054418,3.27602698,173.3,173.15,34.5835488]
[1641025054619,2.77602698,173.3,173.15,36.01024248]
[1641025054821,3.21309073,173.27,173.15,36.01024248]
[1641025055423,3.21309073,173.27,173.15,36.27024248]
[1641025056820,9.77744698,173.31,173.15,36.27024248]
[1641025057022,9.77744698,173.31,173.15,49.81488348]
[1641025057621,3.21309073,173.31,173.15,49.81488348]
[1641025058224,9.77744698,173.32,173.15,49.81488348]
[1641025058823,3.21309073,173.31,173.15,49.81488348]
[1641025061226,3.21309073,173.3,173.15,49.81488348]
[1641025061723,3.21309073,173.31,173.15,49.81488348]
[1641025062424,3.21309073,173.32,173.15,49.81488348]
[1641025063024,9.77744698,173.33,173.15,49.81488348]
[1641025064228,3.21309073,173.32,173.15,49.81488348]
[1641025064430,4.51789073,173.32,173.16,1.3464]
[1641025064729,13.17679073,173.32,173.24,8.6589]
[1641025064927,13.17679073,173.32,173.24,9.1589]
[1641025065129,4.51789073,173.32,173.24,9.4189]
[1641025065630,6.56435625,173.31,173.24,9.4189]
[1641025065830,6.56435625,173.31,173.24,8.9189]
[1641025066032,6.56435625,173.31,173.24,9.4189]
[1641025066429,4.51789073,173.32,173.24,8.9189]
[1641025067629,9.77748232,173.31,173.24,8.9189]
[1641025068234,9.77748232,173.31,173.24,9.4189]
[1641025069039,4.51789073,173.32,173.24,9.4189]
[1641025069738,1.3048,173.32,173.24,9.4189]
[1641025070939,8.6581,173.33,173.24,9.4189]
[1641025071948,11.87069073,173.34,173.24,17.1099]
[1641025072146,3.21309073,173.34,173.24,17.1099]
[1641025072349,3.71309073,173.34,173.24,17.1099]
[1641025072949,3.21309073,173.34,173.24,17.1099]
[1641025073153,9.77701503,173.33,173.24,17.1099]
[1641025073349,9.77701503,173.33,173.24,16.6099]
[1641025073574,11.87119073,173.33,173.24,8.9189]
[1641025074275,6.5639243,173.32,173.24,8.9189]
[1641025074474,6.5639243,173.32,173.24,8.6589]
[1641025075174,6.5639243,173.32,173.24,9.1589]
[1641025075575,3.21309073,173.33,173.24,9.1589]
[1641025075776,3.21309073,173.33,173.24,16.7859]
[1641025076581,11.87129073,173.33,173.24,16.7859]
[1641025077277,9.77699412,173.32,173.24,16.7859]
[1641025077477,9.77699412,173.32,173.24,16.2859]
[1641025077877,15.72240339,173.32,173.24,8.6589]
[1641025078076,15.72240339,173.32,173.17,1.42669368]
[1641025078077,15.72240339,173.32,173.23,8.6597]
[1641025078277,15.98240339,173.32,173.2,0.5]
[1641025078578,9.77699412,173.31,173.2,0.5]
[1641025078979,8.6602,173.29,173.19,29.39207857]
[1641025079177,8.6602,173.29,173.21,8.6602]
[1641025079378,8.6602,173.29,173.21,9.1602]
[1641025079577,8.6602,173.29,173.21,9.4202]
[1641025080577,8.6602,173.29,173.21,8.9202]
[1641025082481,8.6602,173.29,173.21,9.4202]
[1641025082681,8.6593,173.3,173.21,9.4202]
[1641025084085,9.1593,173.3,173.21,8.6602]
[1641025084388,9.1593,173.3,173.14,77.42829368]
[1641025084582,15.5263,173.3,173.14,76.0016]
[1641025084783,15.7863,173.3,173.14,76.0016]
[1641025085183,15.7863,173.3,173.14,105.45336188]
[1641025085383,3.21309073,173.28,173.14,105.45336188]
[1641025085583,8.6629,173.23,173.16,8.6628]
[1641025086385,3.21309073,173.26,173.16,8.6628]
[1641025086586,8.6622,173.25,173.16,8.6628]
[1641025086788,8.6622,173.25,173.16,8.9228]
[1641025086985,8.6622,173.25,173.16,9.4228]
[1641025086986,9.1622,173.25,173.16,9.4228]
[1641025087386,9.1622,173.25,173.16,8.9228]
[1641025087585,9.1622,173.25,173.16,9.4228]
[1641025088687,8.6622,173.25,173.16,9.4228]
[1641025089388,3.21309073,173.26,173.16,9.4228]
[1641025089587,3.21309073,173.26,173.16,10.84949368]
[1641025089989,3.21309073,173.27,173.16,10.84949368]
[1641025090590,3.71309073,173.27,173.16,10.84949368]
[1641025091088,3.21309073,173.27,173.16,10.84949368]
[1641025091290,8.6602,173.29,173.16,10.84949368]
[1641025091888,9.1602,173.29,173.16,10.84949368]
[1641025092491,8.6602,173.29,173.16,10.84949368]
[1641025092790,9.1602,173.29,173.16,10.84949368]
[1641025093392,9.1602,173.29,173.17,1.3643]
[1641025093692,9.1602,173.29,173.21,8.66]
[1641025093893,9.4202,173.29,173.21,8.66]
[1641025094092,9.4202,173.29,173.21,0.26]
[1641025094293,1.63428454,173.28,173.21,0.26]
[1641025094493,8.661,173.27,173.17,1.8643]
[1641025094693,1.63428454,173.28,173.2,8.6603]
[1641025094893,2.13428454,173.28,173.2,0.5]
[1641025095096,2.13428454,173.28,173.17,1.8643]
[1641025095695,10.79458454,173.28,173.17,1.8643]
[1641025095894,10.79458454,173.28,173.2,8.6607]
[1641025096100,9.1603,173.28,173.2,8.9207]
[1641025098508,1.63428454,173.29,173.21,30.45672321]
[1641025098703,10.29408454,173.29,173.22,8.6596]
[1641025099103,8.6598,173.29,173.22,8.9196]
[1641025099507,8.6598,173.29,173.22,0.26]
[1641025099936,8.9198,173.29,173.17,30.9895]
[1641025100135,8.6598,173.29,173.17,30.9895]
[1641025100633,1.63428454,173.26,173.18,1.42669368]
[1641025101036,1.63428454,173.26,173.18,2.18669368]
[1641025101335,1.63428454,173.27,173.18,2.18669368]
[1641025101632,1.63428454,173.27,173.22,8.6597]
[1641025102032,1.63428454,173.27,173.22,8.9197]
[1641025104937,1.63428454,173.26,173.22,8.9197]
[1641025106136,1.63428454,173.27,173.22,8.9197]
[1641025106338,1.63428454,173.27,173.22,0.26]
[1641025106538,1.63428454,173.27,173.21,8.9202]
[1641025106737,1.63428454,173.27,173.21,0.26]
[1641025107140,1.63428454,173.27,173.19,2.0457]
[1641025107442,10.29498454,173.27,173.2,8.6604]
[1641025107639,1.63428454,173.26,173.2,8.6604]
[1641025107839,1.63428454,173.26,173.2,8.9204]
[1641025110343,1.63428454,173.26,173.2,9.4204]
[1641025111346,1.63428454,173.26,173.2,8.9204]
[1641025111845,1.63428454,173.26,173.2,9.4204]
[1641025113047,1.63428454,173.27,173.2,9.4204]
[1641025114846,1.63428454,173.27,173.2,8.9204]
[1641025115447,10.29498454,173.27,173.2,8.9204]
[1641025116450,1.63428454,173.27,173.2,9.4204]
[1641025120382,1.63428454,173.26,173.2,9.4204]
[1641025121581,1.63428454,173.26,173.2,10.84709368]
[1641025122181,1.63428454,173.26,173.2,9.4204]
[1641025124386,1.63428454,173.26,173.2,9.1604]
[1641025124585,1.63428454,173.26,173.2,8.6604]
[1641025125487,1.63428454,173.26,173.2,8.9204]
[1641025125689,1.63428454,173.26,173.2,9.4204]
[1641025125890,1.63428454,173.26,173.2,10.84709368]
[1641025127089,1.63428454,173.27,173.2,10.84709368]
[1641025128689,1.63428454,173.27,173.2,9.4204]
[1641025129491,1.63428454,173.26,173.2,9.4204]
[1641025129690,1.63428454,173.26,173.2,10.84709368]
[1641025131190,1.63428454,173.26,173.2,10.58709368]
[1641025131390,1.63428454,173.26,173.2,9.1604]
[1641025131591,1.63428454,173.26,173.2,8.6604]
[1641025131793,1.63428454,173.26,173.2,9.1604]
[1641025132190,1.63428454,173.26,173.2,10.58709368]
[1641025132594,1.63428454,173.26,173.2,10.84709368]
[1641025132991,1.63428454,173.27,173.2,10.84709368]
[1641025134492,1.63428454,173.27,173.21,1.3059]
[1641025134692,1.63428454,173.27,173.23,8.6591]
[1641025135099,1.63428454,173.27,173.23,8.9191]
[1641025138802,1.63428454,173.27,173.23,0.26]
[1641025139002,1.63428454,173.27,173.21,10.2259]
[1641025141709,1.63428454,173.27,173.21,10.7259]
[1641025141911,1.63428454,173.26,173.21,10.7259]
[1641025142509,1.63428454,173.27,173.21,10.7259]
[1641025144738,1.63428454,173.27,173.21,10.2259]
[1641025145838,1.63428454,173.27,173.21,10.7259]
[1641025146440,1.63428454,173.27,173.21,10.2259]
[1641025146639,1.63428454,173.27,173.21,9.9659]
[1641025146839,1.63428454,173.27,173.21,8.66]
[1641025147040,1.63428454,173.27,173.21,9.16]
[1641025148042,1.63428454,173.27,173.21,8.92]
[1641025148441,1.63428454,173.27,173.21,9.42]
[1641025149143,1.63428454,173.27,173.21,8.66]
[1641025149346,2.13428454,173.27,173.2,8.6609]
[1641025149544,2.13428454,173.27,173.15,28.8696]
[1641025149943,1.63428454,173.25,173.16,26.95841804]
[1641025150345,10.79598454,173.25,173.17,8.6623]
[1641025151144,10.29598454,173.25,173.17,8.6623]
[1641025151346,10.29598454,173.25,173.17,9.1623]
[1641025151547,10.29598454,173.25,173.17,9.4223]
[1641025152146,8.6617,173.25,173.17,9.4223]
[1641025152546,8.6617,173.25,173.17,9.1623]
[1641025152952,11.79522965,173.25,173.17,8.6623]
[1641025153247,11.29522965,173.25,173.17,8.6623]
[1641025153448,11.29522965,173.25,173.16,8.6628]
[1641025153648,11.79522965,173.25,173.16,8.6628]
[1641025153848,13.42951419,173.25,173.16,8.6628]
[1641025154048,13.42951419,173.25,173.16,8.9228]
[1641025155050,10.79598454,173.25,173.16,8.9228]
[1641025155452,10.29598454,173.25,173.18,8.6617]
[1641025155851,8.6617,173.25,173.18,9.4217]
[1641025156051,10.29538454,173.26,173.18,9.4217]
[1641025156349,10.79538454,173.26,173.18,9.4217]
[1641025156750,10.29538454,173.26,173.18,9.4217]
[1641025156951,1.63428454,173.27,173.18,9.4217]
[1641025157552,1.63428454,173.28,173.18,9.4217]
[1641025158255,1.63428454,173.29,173.19,1.2968]
[1641025158454,1.63428454,173.29,173.22,8.6596]
[1641025158854,1.63428454,173.29,173.22,9.4196]
[1641025160257,1.63428454,173.29,173.22,8.9196]
[1641025161460,1.63428454,173.27,173.22,8.9196]
[1641025162360,1.63428454,173.27,173.22,8.6596]
[1641025163361,1.63428454,173.27,173.22,9.1596]
[1641025163563,1.63428454,173.27,173.22,9.4196]
[1641025165564,1.63428454,173.27,173.22,8.9196]
[1641025168966,1.63428454,173.27,173.22,8.6596]
[1641025170469,1.63428454,173.27,173.22,8.9196]
[1641025173793,8.6601,173.28,173.22,8.9196]
[1641025175996,8.6601,173.28,173.22,8.6596]
[1641025177098,10.29398454,173.29,173.22,8.9196]
[1641025177300,9.4197,173.29,173.22,8.9196]
[1641025180500,1.63428454,173.27,173.22,8.9196]
[1641025184903,1.63428454,173.28,173.22,8.9196]
[1641025185706,1.63428454,173.27,173.22,8.9196]
[1641025186308,1.63428454,173.27,173.22,9.4196]
[1641025187109,1.63428454,173.28,173.22,9.4196]
[1641025191716,1.63428454,173.28,173.22,8.9196]
[1641025193618,10.29438454,173.28,173.22,8.9196]
[1641025193820,1.63428454,173.28,173.22,8.9196]
[1641025194021,1.63428454,173.28,173.22,16.0606]
[1641025194219,2.13428454,173.29,173.22,16.0606]
[1641025195020,0.5,173.29,173.22,16.0606]
[1641025195420,2.13428454,173.3,173.22,16.0606]
[1641025195820,2.13428454,173.3,173.25,8.6581]
[1641025196020,2.13428454,173.3,173.25,8.9181]
[1641025196921,2.13428454,173.3,173.25,9.4181]
[1641025197121,2.13428454,173.3,173.25,8.9181]
[1641025197322,2.13428454,173.3,173.25,39.12518494]
[1641025197522,2.13428454,173.3,173.25,39.62518494]
[1641025198022,1.63428454,173.31,173.25,39.62518494]
[1641025200827,1.63428454,173.32,173.25,39.62518494]
[1641025203135,1.63428454,173.32,173.25,8.6581]
[1641025203738,1.63428454,173.29,173.25,9.1581]
[1641025204539,1.63428454,173.3,173.25,9.4181]
[1641025205159,1.63428454,173.31,173.25,9.4181]
[1641025205361,1.63428454,173.31,173.25,10.7163]
[1641025206059,1.63428454,173.31,173.25,10.4563]
[1641025206461,1.63428454,173.31,173.25,9.9563]
[1641025206859,1.63428454,173.31,173.25,10.4563]
[1641025207061,1.63428454,173.3,173.25,10.4563]
[1641025207259,1.63428454,173.3,173.25,9.9563]
[1641025207459,1.63428454,173.3,173.25,10.2163]
[1641025207660,1.63428454,173.3,173.25,8.9181]
[1641025208859,1.63428454,173.3,173.25,8.6581]
[1641025209062,1.63428454,173.3,173.24,8.6589]
[1641025209261,1.63428454,173.3,173.19,179.9531]
[1641025209463,2.13428454,173.3,173.19,180.4531]
[1641025210061,1.63428454,173.28,173.19,180.7131]
[1641025210263,1.63428454,173.28,173.22,8.6599]
[1641025210462,2.13428454,173.28,173.22,8.6599]
[1641025210665,2.13428454,173.28,173.22,8.9199]
[1641025211065,2.13428454,173.28,173.22,0.26]
[1641025211463,2.13428454,173.28,173.2,1.5683]
[1641025212064,10.29438454,173.28,173.21,8.66]
[1641025212270,1.63428454,173.26,173.21,9.16]
[1641025212466,1.63428454,173.26,173.21,9.42]
[1641025213167,1.63428454,173.26,173.21,8.92]
[1641025213566,1.63428454,173.3,173.21,8.92]
[1641025213964,1.63428454,173.29,173.21,8.92]
[1641025214366,2.13428454,173.29,173.21,8.92]
[1641025214565,10.29448454,173.28,173.21,8.92]
[1641025214967,10.79448454,173.28,173.21,8.92]
[1641025216869,10.79448454,173.28,173.21,0.26]
[1641025217071,10.79448454,173.28,173.2,1.502]
[1641025217271,10.79448454,173.28,173.2,1.242]
[1641025217568,10.29448454,173.28,173.2,1.502]
[1641025218370,10.79448454,173.28,173.2,1.502]
[1641025218569,10.79448454,173.28,173.2,10.1628]
[1641025218769,1.63428454,173.27,173.2,10.1628]
[1641025218969,10.79508454,173.27,173.2,10.1628]
[1641025219169,9.1608,173.27,173.2,10.1628]
[1641025219872,10.79508454,173.27,173.2,10.1628]
[1641025221376,10.79508454,173.27,173.2,8.6608]
[1641025221572,10.79508454,173.27,173.17,28.16937021]
[1641025221973,11.05508454,173.27,173.17,28.16937021]
[1641025222376,1.63428454,173.25,173.14,109.17789368]
[1641025222676,2.13428454,173.25,173.14,80.30589368]
[1641025222875,2.13428454,173.25,173.14,82.06219368]
[1641025223075,2.13428454,173.25,173.14,2.68299368]
[1641025223500,4.63830657,173.25,173.14,1.2563]
[1641025223876,1.63428454,173.24,173.14,1.5163]
[1641025224176,8.6629,173.23,173.15,8.6629]
[1641025224576,8.6629,173.23,173.15,8.9229]
[1641025226677,8.6629,173.23,173.15,9.4229]
[1641025227583,9.1629,173.23,173.15,8.9229]
[1641025228980,8.6629,173.23,173.15,8.9229]
[1641025229381,11.58788454,173.24,173.15,9.4229]
[1641025229580,12.08788454,173.24,173.15,10.84959368]
[1641025230481,12.08788454,173.24,173.16,1.2382]
[1641025230681,12.08788454,173.24,173.16,9.9004]
[1641025230880,11.58788454,173.24,173.16,10.6604]
[1641025231081,1.63428454,173.24,173.16,10.6604]
[1641025231280,1.63428454,173.24,173.16,12.08709368]
[1641025231882,1.63428454,173.24,173.16,19.52309368]
[1641025232081,1.63428454,173.24,173.16,25.53373468]
[1641025232281,1.63428454,173.27,173.17,10.10411952]
[1641025232482,1.63428454,173.27,173.22,8.6582]
[1641025232685,1.63428454,173.27,173.23,26.22153703]
[1641025232884,1.63428454,173.29,173.23,26.72153703]
[1641025233081,1.63428454,173.29,173.23,26.98153703]
[1641025233682,1.63428454,173.29,173.23,26.48153703]
[1641025233883,1.63428454,173.29,173.23,0.26]